bitfinex/quotes_SOLUSD_20260201
["timestamp","ask_amount","ask_price","bid_price","bid_amount"]
[1769965271768,14.26441028,101.82,101.78,4.15019779]
[1769965271952,9.28807694,101.81,101.78,4.15019779]
[1769965272467,23.55248722,101.82,101.78,4.15019779]
[1769965272847,19.1098103,101.82,101.78,4.15019779]
[1769965273053,9.28807694,101.82,101.78,4.15019779]
[1769965273754,9.28807694,101.82,101.78,13.97521227]
[1769965274054,9.28807694,101.82,101.78,4.15019779]
[1769965275253,13.73075386,101.79,101.75,14.17767835]
[1769965275654,13.73075386,101.78,101.75,0.2]
[1769965275854,9.28807694,101.77,101.75,0.2]
[1769965276072,9.28807694,101.76,101.73,4.15019779]
[1769965276269,9.28807694,101.76,101.72,4.35019779]
[1769965276478,9.28807694,101.74,101.72,0.2]
[1769965277081,13.73075386,101.75,101.72,10.03088126]
[1769965277369,9.28807694,101.75,101.72,14.18107905]
[1769965277570,9.28807694,101.75,101.72,4.35019779]
[1769965277866,19.11612645,101.75,101.72,4.35019779]
[1769965278068,19.11612645,101.75,101.72,0.2]
[1769965278069,9.28807694,101.74,101.72,0.2]
[1769965278562,14.27072643,101.75,101.72,0.2]
[1769965278563,23.55880337,101.75,101.72,0.2]
[1769965279152,9.82743106,101.76,101.72,4.35019779]
[1769965279375,19.11458741,101.77,101.73,4.15019779]
[1769965279583,9.28807694,101.76,101.73,4.15019779]
[1769965280249,13.73075386,101.75,101.72,0.2]
[1769965280486,9.28807694,101.76,101.72,14.18107052]
[1769965281774,19.11521203,101.76,101.72,14.18107052]
[1769965282303,19.11521203,101.76,101.72,4.35019779]
[1769965282585,4.44267692,101.72,101.68,14.18447339]
[1769965282871,9.28807694,101.73,101.69,4.15019779]
[1769965282872,9.28807694,101.71,101.69,4.15019779]
[1769965283081,9.28807694,101.72,101.69,4.15019779]
[1769965283377,19.12116384,101.7,101.68,0.2]
[1769965283880,28.84966702,101.74,101.68,4.35019779]
[1769965284074,9.28807694,101.72,101.69,4.15019779]
[1769965284254,9.28807694,101.73,101.69,4.15019779]
[1769965284459,19.11749686,101.74,101.69,4.15019779]
[1769965284674,9.28807694,101.73,101.69,4.15019779]
[1769965285566,19.11847767,101.73,101.69,4.15019779]
[1769965286076,9.28807694,101.72,101.69,4.15019779]
[1769965286986,9.28807694,101.72,101.68,0.2]
[1769965287193,9.28807694,101.71,101.68,4.35019779]
[1769965287481,9.28807694,101.7,101.68,0.2]
[1769965287677,19.12125064,101.7,101.68,0.2]
[1769965288258,4.44267692,101.71,101.68,0.2]
[1769965288259,19.11948972,101.72,101.68,14.18489855]
[1769965288566,19.11948972,101.72,101.69,4.15019779]
[1769965288965,9.28807694,101.72,101.69,4.15019779]
[1769965289174,19.11807805,101.73,101.69,4.15019779]
[1769965289760,19.11807805,101.73,101.69,13.98394801]
[1769965289964,9.28807694,101.75,101.7,4.15019779]
[1769965290186,4.44267692,101.74,101.7,4.15019779]
[1769965290368,13.73075386,101.74,101.7,4.15019779]
[1769965291178,9.28807694,101.74,101.7,4.15019779]
[1769965291381,19.11641734,101.75,101.7,4.15019779]
[1769965291777,19.11641734,101.75,101.71,4.15019779]
[1769965292881,9.28807694,101.75,101.71,4.15019779]
[1769965293081,9.28807694,101.77,101.72,4.15019779]
[1769965293381,23.55635284,101.78,101.73,4.15019779]
[1769965293781,9.28807694,101.77,101.73,4.15019779]
[1769965294089,23.55635284,101.78,101.74,13.97917361]
[1769965294980,9.28807694,101.77,101.74,4.15019779]
[1769965295285,13.73075386,101.78,101.74,4.15019779]
[1769965295470,9.28807694,101.78,101.74,4.15019779]
[1769965295875,19.113262,101.78,101.74,4.15019779]
[1769965297185,23.55593892,101.78,101.74,4.15019779]
[1769965297889,14.26786198,101.78,101.74,13.97898042]
[1769965298067,28.40803986,101.82,101.77,4.13135604]
[1769965298268,28.40803986,101.82,101.76,9.28807694]
[1769965298269,23.27490026,101.83,101.78,4.13135604]
[1769965298568,9.28807694,101.83,101.78,4.13135604]
[1769965298777,9.28807694,101.84,101.8,13.95453875]
[1769965299294,9.28807694,101.83,101.8,4.13135604]
[1769965299468,9.28807694,101.83,101.77,9.28807694]
[1769965299469,13.45412847,101.83,101.78,13.95603703]
[1769965299790,9.28807694,101.81,101.78,4.13135604]
[1769965300086,13.45412847,101.8,101.76,13.95805792]
[1769965301494,23.27743637,101.8,101.76,13.95805792]
[1769965302095,13.45412847,101.8,101.76,13.95805792]
[1769965302477,13.44890394,101.8,101.76,13.95805792]
[1769965304398,23.27160878,101.81,101.77,4.13135604]
[1769965305403,23.27160878,101.81,101.77,13.9571331]
[1769965306501,13.44890394,101.81,101.77,13.9571331]
[1769965307201,13.44890394,101.81,101.77,38.52232913]
[1769965307376,9.28285241,101.85,101.8,4.44552959]
[1769965307377,4.14929962,101.85,101.8,4.44552959]
[1769965307698,13.43215203,101.85,101.8,4.44552959]
[1769965308904,4.14929962,101.84,101.8,4.44552959]
[1769965309204,23.25063917,101.85,101.8,4.44552959]
[1769965309495,23.25063917,101.85,101.81,14.26774744]
[1769965310482,9.28285241,101.86,101.82,4.44552959]
[1769965311294,0.1,101.87,101.83,4.44552959]
[1769965311475,0.1,101.87,101.85,9.81836033]
[1769965311675,0.1,101.87,101.85,14.26388992]
[1769965312310,9.28285241,101.9,101.86,4.44552959]
[1769965312502,23.24504248,101.91,101.86,4.44552959]
[1769965312998,9.28285241,101.9,101.86,4.44552959]
[1769965313195,23.24504248,101.91,101.86,4.44552959]
[1769965313574,9.28285241,101.93,101.88,4.44552959]
[1769965313777,9.81065437,101.93,101.89,4.44552959]
[1769965313978,4.14929962,101.93,101.89,4.44552959]
[1769965314701,0.1,101.94,101.91,4.44552959]
[1769965314904,0.1,101.94,101.92,4.44552959]
[1769965315102,5.22656791,101.98,101.93,4.44552959]
[1769965315103,9.90624423,101.98,101.93,4.44552959]
[1769965315308,19.18909664,101.98,101.93,4.44552959]
[1769965315608,9.28285241,101.97,101.93,4.44552959]
[1769965315909,9.80753681,101.97,101.93,4.44552959]
[1769965316205,9.80753681,101.97,101.93,14.25612428]
[1769965316400,23.33844501,101.98,101.93,14.25612428]
[1769965316606,13.53215203,101.98,101.94,4.44552959]
[1769965316994,13.43215203,101.97,101.93,9.81059469]
[1769965317200,13.43215203,101.97,101.93,14.25612428]
[1769965317716,23.2389746,101.97,101.93,14.25612428]
[1769965317885,9.28285241,101.95,101.91,4.44552959]
[1769965318085,9.28285241,101.94,101.91,4.44552959]
[1769965318284,9.28285241,101.95,101.91,4.44552959]
[1769965318512,9.28285241,101.93,101.89,14.25951938]
[1769965319307,13.43215203,101.95,101.9,4.44552959]
[1769965319606,9.28285241,101.94,101.9,14.25869715]
[1769965319925,4.14929962,101.9,101.85,4.44552959]
[1769965320208,9.28285241,101.88,101.84,9.81899252]
[1769965320518,13.43215203,101.91,101.86,4.44552959]
[1769965320818,9.28285241,101.92,101.87,4.44552959]
[1769965321507,38.60923861,101.94,101.86,9.28285241]
[1769965321508,23.24188986,101.94,101.89,4.44552959]
[1769965321918,19.0918773,101.95,101.9,14.25907227]
[1769965322080,9.28285241,101.93,101.89,4.44552959]
[1769965322582,9.80902489,101.95,101.91,4.44552959]
[1769965322805,13.95744181,101.96,101.91,13.728382]
[1769965322988,23.24029422,101.96,101.91,4.44552959]
[1769965323299,19.09008967,101.97,101.92,4.44552959]
[1769965323900,0.1,101.98,101.95,4.44552959]
[1769965324594,9.80244726,102.02,101.96,4.44552959]
[1769965324792,0.1,102.03,101.98,13.728382]
[1769965324981,0.1,102.03,101.98,4.44552959]
[1769965325177,0.1,102.03,101.99,4.44552959]
[1769965325510,0.1,102.03,102.0,4.44552959]
[1769965325687,13.53215203,102.03,101.98,4.44552959]
[1769965326005,23.33322896,102.03,101.98,14.25095448]
[1769965326296,13.53215203,102.03,101.99,4.44552959]
[1769965326506,4.24929962,102.03,101.99,4.44552959]
[1769965326705,9.28285241,102.02,101.99,4.44552959]
[1769965327002,9.28285241,102.0,101.96,4.44552959]
[1769965327403,9.28285241,101.99,101.95,9.80806889]
[1769965327789,19.08819437,101.99,101.94,14.11913151]
[1769965328101,13.65375642,101.98,101.94,9.8092832]
[1769965328302,9.80534196,101.99,101.92,4.30984831]
[1769965328303,9.28285241,101.96,101.92,4.30984831]
[1769965328508,9.28285241,101.96,101.92,14.12104799]
[1769965328884,9.28285241,101.95,101.9,14.12268931]
[1769965329090,4.37090401,101.95,101.9,4.30984831]
[1769965329291,13.65375642,101.95,101.9,14.12329793]
[1769965329491,9.28285241,101.94,101.9,14.12329793]
[1769965329908,23.46331005,101.95,101.9,14.12329793]
[1769965330486,23.46331005,101.95,101.91,4.30984831]
[1769965330696,14.18045764,101.95,101.91,4.30984831]
[1769965330898,9.28285241,101.96,101.92,4.30984831]
[1769965331205,9.28285241,101.97,101.93,4.30984831]
[1769965331602,23.45999702,101.98,101.93,4.30984831]
[1769965332194,9.28285241,101.97,101.93,4.30984831]
[1769965332391,9.28285241,101.95,101.91,14.12186692]
[1769965332595,13.65375642,101.97,101.93,14.12045446]
[1769965332905,13.65375642,101.97,101.93,4.30984831]
[1769965333313,13.65375642,101.97,101.93,14.1203717]
[1769965334085,9.28285241,101.96,101.93,4.30984831]
[1769965334293,4.37090401,101.94,101.89,4.30984831]
[1769965334491,13.65375642,101.93,101.89,14.12380031]
[1769965334899,9.28285241,101.94,101.9,4.30984831]
[1769965335096,13.65375642,101.94,101.9,4.30984831]
[1769965335317,9.28285241,101.93,101.9,4.30984831]
[1769965336207,4.37090401,101.98,101.91,4.30984831]
[1769965336413,19.08965833,101.97,101.92,4.30984831]
[1769965336595,9.28285241,101.96,101.92,4.30984831]
[1769965337010,19.08965833,101.97,101.92,4.30984831]
[1769965337205,43.60667313,101.97,101.92,4.30984831]
[1769965337502,9.28285241,101.96,101.92,4.30984831]
[1769965337822,43.60667313,101.97,101.92,4.30984831]
[1769965338715,13.65375642,102.0,101.94,4.30984831]
[1769965339117,9.28285241,102.0,101.95,4.30984831]
[1769965339317,19.0858129,102.01,101.96,4.30984831]
[1769965340115,23.45671691,102.01,101.96,4.30984831]
[1769965340307,9.28285241,101.99,101.96,4.30984831]
[1769965340616,19.08789656,101.99,101.96,4.30984831]
[1769965341004,23.45799005,102.0,101.96,14.11754318]
[1769965341313,13.65375642,102.0,101.96,14.11754318]
[1769965341512,23.45706713,102.01,101.97,4.30984831]
[1769965341708,9.28285241,102.0,101.97,4.30984831]
[1769965342113,23.45706713,102.01,101.97,4.30984831]
[1769965342327,9.28285241,102.0,101.96,9.80769487]
[1769965342510,9.28285241,101.99,101.95,9.80827517]
[1769965342717,9.28285241,101.98,101.94,14.11951189]
[1769965342928,13.65375642,101.97,101.92,4.30984831]
[1769965343094,13.65375642,101.94,101.9,4.30984831]
[1769965343414,13.65375642,101.91,101.86,4.30984831]
[1769965343622,13.65375642,101.9,101.86,14.12681195]
[1769965343809,13.65375642,101.89,101.85,9.81792598]
[1769965344011,9.28285241,101.87,101.83,9.8197277]
[1769965344204,9.28285241,101.86,101.82,4.30984831]
[1769965344407,13.65375642,101.89,101.84,4.30984831]
[1769965344603,9.28285241,101.9,101.86,14.12712221]
[1769965344808,23.46653042,101.91,101.86,14.12712221]
[1769965345116,9.28285241,101.9,101.86,14.12712221]
[1769965345321,23.37011732,101.92,101.87,4.30984831]
[1769965345622,9.28285241,101.91,101.87,4.30984831]
[1769965345800,42.9872113,101.92,101.87,4.30984831]
[1769965346003,9.28285241,101.91,101.87,4.30984831]
[1769965346518,18.45816892,101.92,101.87,4.30984831]
[1769965346819,9.28285241,101.91,101.87,4.30984831]
[1769965347515,9.28285241,101.93,101.88,4.30984831]
[1769965347719,13.65375642,101.92,101.88,4.30984831]
[1769965347897,9.28285241,101.91,101.87,9.81638662]
[1769965348099,9.28285241,101.91,101.87,14.12623493]
[1769965348301,9.28285241,101.9,101.87,14.12623493]
[1769965348522,9.28285241,101.89,101.85,14.12748998]
[1769965348823,9.28285241,101.88,101.85,14.12812573]
[1769965350023,9.28285241,101.9,101.86,4.30984831]
[1769965350620,9.28285241,101.91,101.86,4.30984831]
[1769965350831,19.09499861,101.92,101.87,4.30984831]
[1769965351328,23.46480984,101.93,101.88,4.30984831]
[1769965352338,14.1802792,101.95,101.9,4.30984831]
[1769965352636,13.65375642,101.97,101.91,9.28285241]
[1769965352923,9.28285241,101.99,101.94,4.30984831]
[1769965353104,9.28285241,102.0,101.95,4.30984831]
[1769965353524,13.65375642,102.01,101.95,4.30984831]
[1769965353734,23.45677115,102.01,101.96,4.30984831]
[1769965353932,19.08557181,102.02,101.97,4.30984831]
[1769965354140,9.8027194,102.02,101.97,4.30984831]
[1769965354434,9.8027194,102.02,101.98,9.80584428]
[1769965355133,19.08557181,102.02,101.98,9.80584428]
[1769965355637,19.08557181,102.02,101.98,4.30984831]
[1769965356631,9.28285241,102.0,101.96,14.11717507]
[1769965356825,13.65375642,102.01,101.97,4.30984831]
[1769965357036,9.28285241,102.0,101.96,14.11717507]
[1769965357338,13.59242538,101.99,101.94,4.26609391]
[1769965357541,9.28285241,101.98,101.94,14.07569534]
[1769965357736,9.28285241,101.98,101.95,9.80825351]
[1769965357923,9.28285241,102.0,101.96,14.07383017]
[1769965358130,9.28285241,101.99,101.96,4.26609391]
[1769965358526,9.28285241,101.97,101.94,4.26609391]
[1769965359043,19.08991932,101.97,101.94,4.26609391]
[1769965359341,13.59242538,101.97,101.93,4.26609391]
[1769965359549,9.28285241,101.97,101.93,4.26609391]
[1769965359725,9.28285241,101.97,101.93,14.07624969]
[1769965360223,9.28285241,101.96,101.93,14.07674787]
[1769965360529,9.28285241,101.94,101.91,9.81181058]
[1769965361047,9.28285241,101.95,101.91,14.07790449]
[1769965361547,9.28285241,101.96,101.92,4.26609391]
[1769965362243,9.28285241,101.95,101.92,4.26609391]
[1769965364143,9.28285241,101.95,101.92,14.07757062]
[1769965364451,9.25611303,101.95,101.92,14.07757062]
[1769965364960,4.27527085,102.0,101.95,4.17779261]
[1769965365264,4.36814258,102.02,101.97,13.43390564]
[1769965365626,13.62425561,102.0,101.95,4.17779261]
[1769965365827,4.36814258,101.98,101.93,4.17779261]
[1769965366022,13.62425561,101.98,101.93,4.17779261]
[1769965366247,13.62425561,101.96,101.92,9.8111746]
[1769965366431,9.25611303,101.95,101.92,9.8111746]
[1769965366638,13.62425561,101.95,101.91,13.9900041]
[1769965367148,13.62425561,101.95,101.92,9.81131822]
[1769965367445,9.25611303,101.97,101.93,13.98839069]
[1769965367632,9.25611303,101.98,101.93,38.51502661]
[1769965367834,19.06198854,101.98,101.93,38.51502661]
[1769965368034,23.43013112,101.98,101.93,38.51502661]
[1769965368249,9.25611303,101.97,101.93,38.51502661]
[1769965370422,9.25611303,101.97,101.93,13.98839069]
[1769965370630,9.25611303,101.96,101.93,13.98839069]
[1769965371135,23.43128456,101.97,101.93,13.98839069]
[1769965372138,23.43128456,101.97,101.92,4.17779261]
[1769965373132,9.25611303,101.96,101.92,4.17779261]
[1769965373647,13.62425561,101.94,101.91,9.81257972]
[1769965374249,4.36814258,101.93,101.9,9.81305949]
[1769965374441,19.06582832,101.94,101.9,9.81305949]
[1769965374838,23.4339709,101.94,101.9,9.81305949]
[1769965375330,13.62425561,101.94,101.9,9.81305949]
[1769965375533,13.62425561,101.94,101.9,38.52470882]
[1769965375738,9.25611303,101.95,101.91,4.17779261]
[1769965376246,13.62425561,101.95,101.91,4.17779261]
[1769965377346,23.43306379,101.95,101.91,13.99000892]
[1769965377851,13.62425561,101.93,101.9,9.81318626]
[1769965378042,9.25611303,101.92,101.89,9.81417902]
[1769965379358,13.62425561,101.95,101.91,13.99029652]
[1769965379652,13.62425561,101.95,101.91,38.52174583]
[1769965380052,9.25611303,101.95,101.92,4.17779261]
[1769965380235,13.62425561,101.98,101.93,4.17779261]
[1769965380431,9.25611303,101.97,101.93,4.17779261]
[1769965380853,13.62425561,101.98,101.93,4.17779261]
[1769965381261,13.62425561,101.95,101.91,9.81250391]
[1769965381449,13.62425561,101.95,101.9,9.81354268]
[1769965381450,9.25611303,101.93,101.9,9.81354268]
[1769965381649,13.62425561,101.93,101.89,4.17779261]
[1769965381958,9.25611303,101.92,101.89,9.81403552]
[1769965382157,9.25611303,101.91,101.89,9.81403552]
[1769965382362,9.25611303,101.91,101.89,9.81444671]
[1769965382540,13.62425561,101.92,101.89,9.81444671]
[1769965382864,13.62425561,101.9,101.88,9.81503569]
[1769965383038,4.36814258,101.92,101.87,27.26]
[1769965383239,9.25611303,101.91,101.87,31.43779261]
[1769965383442,9.25611303,101.91,101.88,9.81546917]
[1769965385056,13.62425561,101.91,101.88,9.81546917]
[1769965385260,13.62425561,101.91,101.87,41.25376786]
[1769965385462,9.25611303,101.9,101.87,41.25376786]
[1769965385968,13.62425561,101.91,101.87,41.25376786]
[1769965386344,13.62425561,101.91,101.86,9.81695029]
[1769965386345,4.36814258,101.89,101.86,9.81695029]
[1769965386546,13.62425561,101.87,101.84,9.81848296]
[1769965386761,13.62425561,101.87,101.83,10.0197954]
[1769965387465,13.38880745,101.86,101.83,0.2]
[1769965387669,9.25611303,101.85,101.83,0.2]
[1769965387865,9.25611303,101.84,101.8,4.39139202]
[1769965388164,9.25611303,101.84,101.81,9.82173193]
[1769965388349,13.38880745,101.85,101.81,9.82173193]
[1769965388558,9.25611303,101.84,101.81,9.82173193]
[1769965390170,13.38880745,101.87,101.82,4.19139202]
[1769965391765,13.38880745,101.89,101.84,4.19139202]
[1769965391963,13.38880745,101.86,101.83,27.26]
[1769965392166,13.38880745,101.85,101.82,9.82077705]
[1769965393560,13.38880745,101.86,101.82,9.82077705]
[1769965393863,13.38880745,101.86,101.82,14.01225416]
[1769965394364,13.38880745,101.86,101.83,9.82027602]
[1769965394572,13.38880745,101.87,101.83,14.01166804]
[1769965394774,13.38880745,101.86,101.83,9.82027602]
[1769965395867,13.38880745,101.88,101.84,4.19139202]
[1769965396060,9.25611303,101.87,101.84,4.19139202]
[1769965397074,9.25611303,101.87,101.84,14.01001905]
[1769965398463,13.38880745,101.88,101.84,38.55833012]
[1769965399961,13.38880745,101.9,101.85,4.19139202]
[1769965400180,9.25611303,101.9,101.86,4.19139202]
[1769965400681,13.38880745,101.92,101.88,4.19139202]
[1769965401483,4.13269442,101.93,101.89,4.19139202]
[1769965401861,4.13269442,101.93,101.89,13.44750505]
[1769965402176,13.38880745,101.94,101.89,13.44750505]
[1769965402350,13.38880745,101.93,101.89,4.19139202]
[1769965402556,13.38880745,101.93,101.89,14.00506812]
[1769965403155,13.38880745,101.94,101.9,4.19139202]
[1769965404673,9.25611303,101.93,101.9,14.00443632]
[1769965406665,13.38880745,101.94,101.9,14.00443632]
[1769965406861,24.52003288,101.96,101.91,4.19139202]
[1769965406862,13.38880745,101.96,101.91,4.19139202]
[1769965407073,13.38880745,101.96,101.92,4.19139202]
[1769965407276,9.25611303,101.97,101.93,4.19139202]
[1769965407662,23.19533627,101.98,101.93,4.19139202]
[1769965407870,4.13269442,102.0,101.94,9.25611303]
[1769965408073,13.38880745,101.99,101.94,13.44750505]
[1769965408384,4.13269442,101.99,101.95,9.25611303]
[1769965408570,13.38880745,102.02,101.98,4.19139202]
[1769965408775,13.38880745,102.02,101.99,9.80488283]
[1769965408964,23.19083872,102.02,101.98,13.99693239]
[1769965409160,13.38880745,101.99,101.95,9.80824525]
[1769965409365,13.38880745,101.99,101.95,13.99963727]
[1769965409566,9.25611303,101.98,101.94,9.8091431]
[1769965409769,4.13269442,101.97,101.94,9.8091431]
[1769965410285,9.25611303,101.98,101.94,14.00053512]
[1769965410490,13.38880745,102.0,101.95,4.19139202]
[1769965410662,13.38880745,102.0,101.95,13.44750505]
[1769965411070,9.25611303,102.01,101.97,4.19139202]
[1769965411279,13.38880745,102.01,101.97,4.19139202]
[1769965411460,13.38880745,102.01,101.96,38.51857915]
[1769965411658,4.13269442,102.0,101.96,38.51857915]
[1769965411861,0.1,102.03,101.99,13.44750505]
[1769965412477,0.1,102.03,102.01,4.19139202]
[1769965412675,0.1,102.03,102.0,9.25611303]
[1769965412971,0.1,102.03,102.0,13.44750505]
[1769965413176,1e-08,102.04,102.03,13.99243093]
[1769965413495,15.06661853,102.06,102.02,37.06169236]
[1769965413686,1.67781108,102.06,102.02,50.50919741]
[1769965413897,1e-08,102.06,102.03,9.25611303]
[1769965414075,1e-08,102.06,102.04,13.44750505]
[1769965414275,4.13269442,102.09,102.05,13.44750505]
[1769965414478,4.13269442,102.09,102.05,4.19139202]
[1769965414798,13.38880745,102.07,102.03,4.19139202]
[1769965415174,13.38880745,102.07,102.04,9.8000784]
[1769965416196,4.13269442,102.07,102.04,9.8000784]
[1769965416380,13.38880745,102.09,102.05,4.19139202]
[1769965416586,9.25611303,102.08,102.04,41.23147042]
[1769965416799,4.13269442,102.06,102.02,4.19139202]
[1769965417309,4.13269442,102.06,102.03,9.80081782]
[1769965417597,4.37042361,102.03,102.0,9.80346865]
[1769965417899,9.25611303,102.04,102.01,9.80257336]
[1769965418092,13.62653664,102.05,102.0,23.35613597]
[1769965418273,13.62653664,102.04,102.0,4.29652954]
[1769965418477,13.62653664,102.04,102.01,9.80287711]
[1769965419876,4.37042361,102.06,102.01,23.35551968]
[1769965420085,14.16864664,102.06,102.01,47.86292091]
[1769965420299,4.37042361,102.04,102.0,14.100143]
[1769965420495,13.62653664,102.04,102.0,4.29652954]
[1769965420675,13.62653664,102.04,102.0,14.1003843]
[1769965421180,14.16864664,102.06,102.0,23.35649733]
[1769965421384,4.37042361,102.05,102.01,4.29652954]
[1769965421600,13.62653664,102.07,102.03,4.29652954]
[1769965421802,23.42391628,102.07,102.03,4.29652954]
[1769965421975,13.62653664,102.05,102.0,4.29652954]
[1769965422180,13.62653664,102.05,102.0,14.09997179]
[1769965422577,4.37042361,102.04,102.0,14.09997501]
[1769965423495,4.37042361,102.04,101.99,61.00784575]
[1769965423496,9.25611303,102.07,102.02,13.55264257]
[1769965423677,13.62653664,102.07,102.02,13.55264257]
[1769965423875,14.16785249,102.07,102.03,4.29652954]
[1769965424092,23.42396552,102.07,102.02,13.55264257]
[1769965424302,13.62653664,102.06,102.02,4.29652954]
[1769965424482,13.62653664,102.05,102.01,9.80280426]
[1769965424680,4.37042361,102.03,101.99,4.29652954]
[1769965424907,13.62653664,102.03,101.99,4.29652954]
[1769965425197,13.57131288,102.01,101.97,9.80653098]
[1769965425398,9.25611303,102.0,101.96,14.1395288]
[1769965425599,13.57131288,101.98,101.94,14.14147435]
[1769965426104,9.25611303,101.99,101.95,4.33224865]
[1769965426298,4.31519985,102.0,101.96,4.33224865]
[1769965426496,13.56222569,102.0,101.96,4.33224865]
[1769965427103,23.36622297,102.0,101.96,4.33224865]
[1769965427704,13.56222569,101.98,101.95,9.80864242]
[1769965428081,9.24702584,101.97,101.94,14.14172834]
[1769965428279,13.56222569,101.98,101.94,14.14172834]
[1769965429207,9.24702584,101.98,101.94,14.14177573]
[1769965429387,13.56222569,101.98,101.94,14.14177573]
[1769965430006,9.24702584,101.99,101.95,4.33224865]
[1769965430307,13.56222569,101.99,101.95,4.33224865]
[1769965431803,13.56222569,101.99,101.95,14.14031091]
[1769965431990,13.56222569,101.99,101.95,9.80806226]
[1769965432304,4.31519985,102.0,101.96,4.33224865]
[1769965432512,13.56222569,102.0,101.96,4.33224865]
[1769965432713,4.31519985,102.0,101.96,4.33224865]
[1769965433006,4.31519985,102.0,101.96,13.57927449]
[1769965433515,4.31519985,102.0,101.96,4.33224865]
[1769965433700,13.56222569,102.0,101.96,4.33224865]
[1769965433886,9.24702584,102.02,101.98,4.33224865]
[1769965434206,4.31519985,102.04,101.99,13.57927449]
[1769965434383,9.24702584,102.05,102.01,4.33224865]
[1769965434586,4.31519985,102.06,102.02,4.33224865]
[1769965435112,23.35873531,102.08,102.03,4.33224865]
[1769965435288,13.56222569,102.07,102.03,4.33224865]
[1769965435890,13.56222569,102.07,102.03,14.13234487]
[1769965437190,4.31519985,102.07,102.03,38.63494214]
[1769965437401,4.31519985,102.08,102.04,4.33224865]
[1769965437602,4.31519985,102.09,102.05,13.57927449]
[1769965437804,4.41519985,102.11,102.07,13.57927449]
[1769965437990,4.41519985,102.11,102.08,9.79623824]
[1769965438790,23.45568435,102.11,102.07,14.12906191]
[1769965438995,9.24702584,102.09,102.06,9.79757451]
[1769965439205,13.56222569,102.1,102.06,9.79757451]
[1769965439409,4.31519985,102.09,102.06,9.79757451]
[1769965440106,4.31519985,102.13,102.09,4.33224865]
[1769965440698,4.31519985,102.13,102.09,13.57927449]
[1769965441221,4.31519985,102.11,102.07,40.79927449]
[1769965441921,76.22684253,102.17,102.02,4.33224865]
[1769965441922,4.31519985,102.09,102.02,4.33224865]
[1769965442126,4.31519985,102.07,102.03,19.04752532]
[1769965442333,23.35945368,102.07,102.03,9.80049948]
[1769965442608,9.24702584,102.06,102.02,24.50437911]
[1769965442808,13.56222569,102.1,102.05,13.57927449]
[1769965443193,13.56222569,102.08,102.03,23.38004904]
[1769965443393,4.31519985,102.06,102.02,9.80167683]
[1769965443593,4.31519985,102.06,102.03,9.80077127]
[1769965443812,4.31519985,102.06,102.02,9.80156733]
[1769965444519,4.31519985,102.06,102.02,19.04859317]
[1769965445017,9.24702584,102.09,102.04,13.57927449]
[1769965445216,13.56222569,102.08,102.03,13.57927449]
[1769965446898,13.56222569,102.07,102.02,28.83724766]
[1769965447899,13.56222569,102.07,102.03,9.80056881]
[1769965448234,4.31519985,102.07,102.03,9.80056881]
[1769965448416,4.31519985,102.07,102.03,13.99311073]
[1769965448801,13.56222569,102.07,102.03,9.80056881]
[1769965449004,4.31519985,102.07,102.03,13.99311073]
[1769965449304,23.35942429,102.07,102.02,23.24110411]
[1769965449504,23.35942429,102.07,102.02,13.99407827]
[1769965449701,13.51142432,102.05,102.01,9.80283165]
[1769965450202,23.31070643,102.05,102.01,9.80283165]
[1769965450905,24.492995,102.07,102.03,4.19254192]
[1769965450906,4.26439848,102.07,102.03,4.19254192]
[1769965451731,4.26439848,102.08,102.04,4.19254192]
[1769965452107,14.05888463,102.1,102.05,13.99165999]
[1769965452306,4.26439848,102.1,102.06,4.19254192]
[1769965452707,23.3040076,102.12,102.07,4.19254192]
[1769965452907,23.3040076,102.12,102.06,9.24702584]
[1769965452908,4.26439848,102.1,102.06,4.19254192]
[1769965453134,4.26439848,102.1,102.06,13.43956776]
[1769965453340,4.26439848,102.1,102.06,4.19254192]
[1769965453633,4.26439848,102.1,102.06,13.43956776]
[1769965454313,13.51142432,102.08,102.02,13.43956776]
[1769965454511,13.51142432,102.08,102.03,4.19254192]
[1769965454732,13.51142432,102.08,102.03,13.43956776]
[1769965454943,13.51142432,102.07,102.02,13.43956776]
[1769965455111,4.26439848,102.07,102.04,9.79990733]
[1769965455510,4.26439848,102.09,102.04,13.43956776]
[1769965455811,23.30511498,102.11,102.06,23.2377196]
[1769965456011,13.51142432,102.1,102.06,13.99069376]
[1769965456427,4.26439848,102.1,102.06,13.99069376]
[1769965456624,13.51142432,102.12,102.07,13.43956776]
[1769965457122,13.51142432,102.1,102.06,4.19254192]
[1769965457327,13.51142432,102.1,102.05,4.19254192]
[1769965457529,4.26439848,102.1,102.05,13.43956776]
[1769965458319,4.26439848,102.1,102.06,9.79804378]
[1769965459010,13.51142432,102.1,102.06,9.79804378]
[1769965459327,4.26439848,102.1,102.06,19.04506962]
[1769965459633,4.26439848,102.07,102.02,31.41254192]
[1769965459808,9.79445571,102.1,102.05,23.23860467]
[1769965459809,13.51142432,102.1,102.05,23.23860467]
[1769965460013,13.51142432,102.09,102.05,13.99157883]
[1769965460231,4.26439848,102.09,102.05,13.99157883]
[1769965460529,4.26439848,102.06,102.02,27.22]